[Event "*** Titled Tuesday Blitz"]
[Site "Chess.com"]
[Date "2021.04.06"]
[Round "7"]
[White "Marianov_Podstavnikov"]
[Black "chescomhuynya"]
[Result "1-0"]
[WhiteElo "2385"]
[BlackElo "2558"]
[TimeControl "180+1"]
[EndTime "11:16:09 PDT"]
[Termination "Marianov_Podstavnikov won by resignation"]

1. e4 {[%clk 0:03:00.9]} 1... d5 {[%clk 0:02:56.7]} 2. exd5 {[%clk 0:02:59.2]}
2... Nf6 {[%clk 0:02:54.4]} 3. d4 {[%clk 0:02:55]} 3... Bg4 {[%clk 0:02:54.7]}
4. f3 {[%clk 0:02:54.2]} 4... Bf5 {[%clk 0:02:54.8]} 5. g4 {[%clk 0:02:53.9]}
5... Bg6 {[%clk 0:02:54.6]} 6. c4 {[%clk 0:02:53.3]} 6... c6 {[%clk 0:02:49.2]}
7. g5 {[%clk 0:02:49.1]} 7... Nh5 {[%clk 0:02:43.9]} 8. f4 {[%clk 0:02:47.1]}
8... Qd7 {[%clk 0:02:40.1]} 9. Nc3 {[%clk 0:02:41.6]} 9... cxd5 {[%clk
0:02:39.8]} 10. Be2 {[%clk 0:02:31.7]} 10... dxc4 {[%clk 0:02:30.9]} 11. Bxh5
{[%clk 0:02:29.4]} 11... Bxh5 {[%clk 0:02:31.1]} 12. Qxh5 {[%clk 0:02:29.3]}
12... Qxd4 {[%clk 0:02:32]} 13. Qf3 {[%clk 0:02:07.8]} 13... Nc6 {[%clk
0:02:31.4]} 14. Nge2 {[%clk 0:02:07.7]} 14... Qd7 {[%clk 0:02:29.6]} 15. Be3
{[%clk 0:02:04.5]} 15... e6 {[%clk 0:02:22.9]} 16. Rd1 {[%clk 0:02:01.5]} 16...
Qc8 {[%clk 0:02:21.5]} 17. Nd4 {[%clk 0:01:59.4]} 17... Nb4 {[%clk 0:02:10.3]}
18. O-O {[%clk 0:01:51.3]} 18... Be7 {[%clk 0:02:09.7]} 19. Kh1 {[%clk
0:01:24.8]} 19... O-O {[%clk 0:02:07.5]} 20. f5 {[%clk 0:01:25.2]} 20... e5
{[%clk 0:01:50.4]} 21. f6 {[%clk 0:01:22.9]} 21... exd4 {[%clk 0:01:15.9]} 22.
fxe7 {[%clk 0:01:21.1]} 22... Re8 {[%clk 0:01:07]} 23. Qxf7+ {[%clk 0:01:20.1]}
23... Kh8 {[%clk 0:01:07.6]} 24. Bxd4 {[%clk 0:01:18.2]} 24... Qc6+ {[%clk
0:01:03.8]} 25. Kg1 {[%clk 0:01:17.5]} 25... Qg6 {[%clk 0:01:03.3]} 26. Qf8+
{[%clk 0:01:13.7]} 1-0

[Event "*** Titled Tuesday Blitz"]
[Site "Chess.com"]
[Date "2021.04.06"]
[Round "7"]
[White "jd001"]
[Black "lucachess49"]
[Result "0-1"]
[WhiteElo "2156"]
[BlackElo "2410"]
[TimeControl "180+1"]
[EndTime "11:16:16 PDT"]
[Termination "lucachess49 won by checkmate"]

1. d4 {[%clk 0:03:00.9]} 1... Nf6 {[%clk 0:02:57.4]} 2. c4 {[%clk 0:03:00.6]}
2... e6 {[%clk 0:02:58]} 3. Nf3 {[%clk 0:03:00]} 3... a6 {[%clk 0:02:56.1]} 4.
g3 {[%clk 0:02:51.8]} 4... b5 {[%clk 0:02:54.6]} 5. b3 {[%clk 0:02:47.7]} 5...
c5 {[%clk 0:02:50.9]} 6. Bg2 {[%clk 0:02:44.8]} 6... Bb7 {[%clk 0:02:47.3]} 7.
dxc5 {[%clk 0:02:40.1]} 7... Bxc5 {[%clk 0:02:46.2]} 8. cxb5 {[%clk 0:02:38.9]}
8... axb5 {[%clk 0:02:40]} 9. O-O {[%clk 0:02:38]} 9... O-O {[%clk 0:02:39]} 10.
Bb2 {[%clk 0:02:37]} 10... d6 {[%clk 0:02:07.1]} 11. Nc3 {[%clk 0:02:36.1]}
11... Qb6 {[%clk 0:02:03.6]} 12. e3 {[%clk 0:02:33]} 12... Nbd7 {[%clk
0:02:00.4]} 13. Qd3 {[%clk 0:02:24.3]} 13... b4 {[%clk 0:01:53]} 14. Na4 {[%clk
0:02:23.3]} 14... Rxa4 {[%clk 0:01:53.3]} 15. bxa4 {[%clk 0:02:22.7]} 15... Ba6
{[%clk 0:01:53.9]} 16. Qb3 {[%clk 0:02:16]} 16... Bxf1 {[%clk 0:01:54.1]} 17.
Bxf1 {[%clk 0:02:13.9]} 17... Ra8 {[%clk 0:01:22.4]} 18. Bb5 {[%clk 0:02:12.4]}
18... Qb7 {[%clk 0:01:16.6]} 19. Nd4 {[%clk 0:02:08.5]} 19... Ne5 {[%clk
0:01:15.4]} 20. Qd1 {[%clk 0:02:01.2]} 20... Rc8 {[%clk 0:01:07.8]} 21. f4
{[%clk 0:01:56.5]} 21... Neg4 {[%clk 0:01:06.5]} 22. Qe2 {[%clk 0:01:47.1]}
22... Qe4 {[%clk 0:01:01.8]} 23. Re1 {[%clk 0:01:40.1]} 23... Bxd4 {[%clk
0:00:36.2]} 24. Bxd4 {[%clk 0:01:37.1]} 24... Rc2 {[%clk 0:00:35.5]} 25. Qd3
{[%clk 0:01:27.4]} 25... Qg2# {[%clk 0:00:34.8]} 0-1

[Event "*** Titled Tuesday Blitz"]
[Site "Chess.com"]
[Date "2021.04.06"]
[Round "7"]
[White "chessmadara"]
[Black "chess4life23"]
[Result "0-1"]
[WhiteElo "2190"]
[BlackElo "2356"]
[TimeControl "180+1"]
[EndTime "11:16:21 PDT"]
[Termination "chess4life23 won by resignation"]

1. e4 {[%clk 0:03:00.9]} 1... c5 {[%clk 0:02:59.5]} 2. Nf3 {[%clk 0:02:59]} 2...
d6 {[%clk 0:02:59.9]} 3. d4 {[%clk 0:02:58.8]} 3... cxd4 {[%clk 0:03:00.8]} 4.
Nxd4 {[%clk 0:02:59.6]} 4... Nf6 {[%clk 0:03:01.3]} 5. Nc3 {[%clk 0:02:59.6]}
5... a6 {[%clk 0:03:01.8]} 6. g3 {[%clk 0:02:59]} 6... e6 {[%clk 0:02:57.4]} 7.
Bg2 {[%clk 0:02:58]} 7... Qc7 {[%clk 0:02:57.8]} 8. O-O {[%clk 0:02:57.7]} 8...
Be7 {[%clk 0:02:57.5]} 9. Be3 {[%clk 0:02:52.4]} 9... O-O {[%clk 0:02:57]} 10.
f4 {[%clk 0:02:50]} 10... Nc6 {[%clk 0:02:55.7]} 11. Nxc6 {[%clk 0:02:31.9]}
11... bxc6 {[%clk 0:02:52]} 12. e5 {[%clk 0:02:30.2]} 12... Nd5 {[%clk
0:02:42.6]} 13. exd6 {[%clk 0:02:22.3]} 13... Bxd6 {[%clk 0:02:27.1]} 14. Bf2
{[%clk 0:02:18.6]} 14... Nxc3 {[%clk 0:02:21.8]} 15. bxc3 {[%clk 0:02:19.5]}
15... Rd8 {[%clk 0:02:19.5]} 16. Qf3 {[%clk 0:02:14.5]} 16... Rb8 {[%clk
0:02:13.2]} 17. Qxc6 {[%clk 0:01:54.8]} 17... Qa5 {[%clk 0:02:04.4]} 18. Rad1
{[%clk 0:01:50]} 18... Bb7 {[%clk 0:02:03.3]} 19. Qc4 {[%clk 0:01:38.3]} 19...
Bxg2 {[%clk 0:01:57.1]} 20. Kxg2 {[%clk 0:01:39.2]} 20... Rdc8 {[%clk
0:01:46.5]} 21. Qe4 {[%clk 0:01:26.1]} 21... Bc5 {[%clk 0:01:22.2]} 22. Qe5
{[%clk 0:01:25.7]} 22... Qb6 {[%clk 0:01:11.4]} 23. Rb1 {[%clk 0:01:15.8]} 23...
Qc6+ {[%clk 0:01:09.2]} 24. Kh3 {[%clk 0:01:10.5]} 24... Rxb1 {[%clk 0:01:07.8]}
0-1

[Event "*** Titled Tuesday Blitz"]
[Site "Chess.com"]
[Date "2021.04.06"]
[Round "7"]
[White "PchelkinVK"]
[Black "InitiatingASC"]
[Result "1-0"]
[WhiteElo "2586"]
[BlackElo "2425"]
[TimeControl "180+1"]
[EndTime "11:16:39 PDT"]
[Termination "PchelkinVK won by resignation"]

1. d4 {[%clk 0:03:00.9]} 1... Nf6 {[%clk 0:02:59.5]} 2. Nc3 {[%clk 0:03:01.1]}
2... g6 {[%clk 0:02:57.7]} 3. e4 {[%clk 0:03:00.9]} 3... Bg7 {[%clk 0:02:57.5]}
4. e5 {[%clk 0:03:01]} 4... Ng8 {[%clk 0:02:56.2]} 5. Bf4 {[%clk 0:03:00.6]}
5... d6 {[%clk 0:02:56.7]} 6. Qf3 {[%clk 0:02:59]} 6... Nh6 {[%clk 0:02:45.2]}
7. h3 {[%clk 0:02:54.1]} 7... O-O {[%clk 0:02:39.1]} 8. O-O-O {[%clk 0:02:53.7]}
8... a6 {[%clk 0:02:28.1]} 9. g4 {[%clk 0:02:53.2]} 9... Kh8 {[%clk 0:02:07.8]}
10. Qe3 {[%clk 0:02:51.3]} 10... Ng8 {[%clk 0:02:07.5]} 11. Be2 {[%clk
0:02:42.3]} 11... b5 {[%clk 0:02:03.5]} 12. h4 {[%clk 0:02:42.1]} 12... Bb7
{[%clk 0:02:02.1]} 13. Nf3 {[%clk 0:02:41.5]} 13... b4 {[%clk 0:01:54.1]} 14.
Ne4 {[%clk 0:02:40.4]} 14... Bd5 {[%clk 0:01:52]} 15. h5 {[%clk 0:02:38.4]}
15... Nc6 {[%clk 0:01:35.2]} 16. Neg5 {[%clk 0:02:27.3]} 16... h6 {[%clk
0:01:26.9]} 17. hxg6 {[%clk 0:02:16.6]} 17... fxg6 {[%clk 0:01:27.1]} 18. Bd3
{[%clk 0:02:01.7]} 18... Qe8 {[%clk 0:01:08]} 19. Be4 {[%clk 0:01:29.3]} 19...
Bxe4 {[%clk 0:00:45.8]} 20. Qxe4 {[%clk 0:01:29.5]} 20... a5 {[%clk 0:00:25]}
21. Ne6 {[%clk 0:01:27.9]} 21... Rxf4 {[%clk 0:00:19.9]} 22. Nxf4 {[%clk
0:01:27.8]} 22... Kh7 {[%clk 0:00:12.3]} 23. Ng5+ {[%clk 0:01:27]} 1-0

[Event "*** Titled Tuesday Blitz"]
[Site "Chess.com"]
[Date "2021.04.06"]
[Round "7"]
[White "Brave_spirit12"]
[Black "Borsuk_Konstantin"]
[Result "0-1"]
[WhiteElo "2559"]
[BlackElo "2682"]
[TimeControl "180+1"]
[EndTime "11:16:42 PDT"]
[Termination "Borsuk_Konstantin won by resignation"]

1. e4 {[%clk 0:02:55.3]} 1... e6 {[%clk 0:02:58.4]} 2. d4 {[%clk 0:02:53.8]}
2... d5 {[%clk 0:02:58]} 3. exd5 {[%clk 0:02:51.2]} 3... exd5 {[%clk 0:02:58.1]}
4. Nc3 {[%clk 0:02:51.9]} 4... c6 {[%clk 0:02:53.8]} 5. Bd3 {[%clk 0:02:50.6]}
5... Bd6 {[%clk 0:02:54]} 6. Nge2 {[%clk 0:02:50]} 6... Qf6 {[%clk 0:02:52.1]}
7. Be3 {[%clk 0:02:48.9]} 7... Ne7 {[%clk 0:02:51.3]} 8. Qd2 {[%clk 0:02:48.8]}
8... h6 {[%clk 0:02:47.7]} 9. O-O-O {[%clk 0:02:45.4]} 9... Nf5 {[%clk
0:02:43.9]} 10. Ng3 {[%clk 0:02:44.2]} 10... Nxe3 {[%clk 0:02:41.3]} 11. Qxe3+
{[%clk 0:02:43.7]} 11... Kf8 {[%clk 0:02:26]} 12. Kb1 {[%clk 0:02:38.6]} 12...
Na6 {[%clk 0:02:09.2]} 13. Rde1 {[%clk 0:02:30.7]} 13... Bd7 {[%clk 0:02:08]}
14. Bxa6 {[%clk 0:02:26.8]} 14... bxa6 {[%clk 0:02:08]} 15. Qe2 {[%clk
0:02:26.9]} 15... Qxd4 {[%clk 0:02:03.5]} 16. Qxa6 {[%clk 0:02:25.5]} 16... Rb8
{[%clk 0:02:00.4]} 17. Re3 {[%clk 0:02:14.9]} 17... Qb6 {[%clk 0:01:46]} 18.
Qxb6 {[%clk 0:02:07]} 18... axb6 {[%clk 0:01:41.8]} 19. Rd1 {[%clk 0:02:06.1]}
19... Bf4 {[%clk 0:01:32]} 20. Rf3 {[%clk 0:02:05]} 20... g5 {[%clk 0:01:31.5]}
21. h3 {[%clk 0:02:02.1]} 21... h5 {[%clk 0:01:23.3]} 22. Nge2 {[%clk
0:02:01.1]} 22... Be5 {[%clk 0:01:23]} 23. Re3 {[%clk 0:01:54.5]} 23... Bf6
{[%clk 0:01:17.5]} 24. f4 {[%clk 0:01:49]} 24... g4 {[%clk 0:01:16]} 25. hxg4
{[%clk 0:01:41.3]} 25... Bxg4 {[%clk 0:01:05.6]} 26. Rh1 {[%clk 0:01:38.3]}
26... d4 {[%clk 0:01:03.8]} 27. Rg3 {[%clk 0:01:38.4]} 27... dxc3 {[%clk
0:01:03.5]} 28. Nxc3 {[%clk 0:01:38.8]} 28... Bxc3 {[%clk 0:01:00.1]} 29. bxc3
{[%clk 0:01:32]} 29... Ke7 {[%clk 0:00:52.7]} 30. Kb2 {[%clk 0:01:31.2]} 30...
Kf6 {[%clk 0:00:52.4]} 31. Re1 {[%clk 0:01:30.5]} 31... Rhe8 {[%clk 0:00:51.6]}
32. Rf1 {[%clk 0:01:25]} 32... Rbd8 {[%clk 0:00:47.7]} 33. f5 {[%clk 0:01:18.6]}
33... Rd2 {[%clk 0:00:46.9]} 0-1

[Event "*** Titled Tuesday Blitz"]
[Site "Chess.com"]
[Date "2021.04.06"]
[Round "7"]
[White "chessprincesa1"]
[Black "kallerotmg"]
[Result "0-1"]
[WhiteElo "2214"]
[BlackElo "2097"]
[TimeControl "180+1"]
[EndTime "11:16:42 PDT"]
[Termination "kallerotmg won by resignation"]

1. Nf3 {[%clk 0:00:25.8]} 1... d5 {[%clk 0:02:50]} 2. g3 {[%clk 0:00:25.4]} 2...
Nf6 {[%clk 0:02:50.1]} 3. Bg2 {[%clk 0:00:25.8]} 3... Bg4 {[%clk 0:02:44]} 4.
O-O {[%clk 0:00:26.7]} 4... Nc6 {[%clk 0:02:43.7]} 5. d3 {[%clk 0:00:26.1]} 5...
Qd7 {[%clk 0:02:32.6]} 6. Re1 {[%clk 0:00:24.5]} 6... O-O-O {[%clk 0:02:32.8]}
7. Nbd2 {[%clk 0:00:24.5]} 7... h5 {[%clk 0:02:31.1]} 8. b3 {[%clk 0:00:22.4]}
8... e5 {[%clk 0:02:24.5]} 9. Bb2 {[%clk 0:00:22.3]} 9... d4 {[%clk 0:02:25.4]}
10. Ne4 {[%clk 0:00:17.8]} 10... Nxe4 {[%clk 0:02:25.4]} 11. dxe4 {[%clk
0:00:18.7]} 11... Bb4 {[%clk 0:02:24.8]} 12. Rf1 {[%clk 0:00:16.5]} 12... h4
{[%clk 0:02:24.9]} 13. a3 {[%clk 0:00:16.6]} 13... Be7 {[%clk 0:02:21.4]} 14.
Qd3 {[%clk 0:00:14.9]} 14... hxg3 {[%clk 0:02:20.7]} 15. fxg3 {[%clk 0:00:14]}
15... f5 {[%clk 0:02:13.8]} 16. b4 {[%clk 0:00:13.3]} 16... Bf6 {[%clk
0:02:06.9]} 17. exf5 {[%clk 0:00:09.1]} 17... Bxf5 {[%clk 0:02:06.9]} 18. e4
{[%clk 0:00:09.1]} 18... dxe3 {[%clk 0:02:00.4]} 19. Qxe3 {[%clk 0:00:07.9]}
19... e4 {[%clk 0:01:59.4]} 20. Bxf6 {[%clk 0:00:05.6]} 20... gxf6 {[%clk
0:01:54.4]} 21. Nh4 {[%clk 0:00:06]} 21... Rxh4 {[%clk 0:01:51.9]} 22. gxh4
{[%clk 0:00:05.2]} 22... Ne5 {[%clk 0:01:49.1]} 23. Qf4 {[%clk 0:00:05.2]} 23...
Bh7 {[%clk 0:01:46]} 24. Qxf6 {[%clk 0:00:05.2]} 24... Qd4+ {[%clk 0:01:45]} 25.
Qf2 {[%clk 0:00:03.8]} 25... e3 {[%clk 0:01:45]} 26. Qf6 {[%clk 0:00:02.7]}
26... e2+ {[%clk 0:01:45]} 27. Rf2 {[%clk 0:00:03.1]} 27... Qxa1+ {[%clk
0:01:40.9]} 0-1

[Event "*** Titled Tuesday Blitz"]
[Site "Chess.com"]
[Date "2021.04.06"]
[Round "7"]
[White "VD_coach"]
[Black "ridnani2021"]
[Result "1-0"]
[WhiteElo "2512"]
[BlackElo "2360"]
[TimeControl "180+1"]
[EndTime "11:16:47 PDT"]
[Termination "VD_coach won by resignation"]

1. Nf3 {[%clk 0:03:00]} 1... g6 {[%clk 0:02:59.2]} 2. c4 {[%clk 0:03:00.9]} 2...
Bg7 {[%clk 0:02:57.9]} 3. g3 {[%clk 0:02:54.1]} 3... e5 {[%clk 0:02:54.2]} 4.
Bg2 {[%clk 0:02:51.8]} 4... d6 {[%clk 0:02:51.1]} 5. O-O {[%clk 0:02:51.6]} 5...
f5 {[%clk 0:02:51]} 6. Nc3 {[%clk 0:02:49.2]} 6... Nf6 {[%clk 0:02:50.6]} 7. d3
{[%clk 0:02:49]} 7... O-O {[%clk 0:02:50]} 8. Rb1 {[%clk 0:02:49.2]} 8... c6
{[%clk 0:02:48.4]} 9. b4 {[%clk 0:02:49.2]} 9... Be6 {[%clk 0:02:46.6]} 10. b5
{[%clk 0:02:49.3]} 10... Qc7 {[%clk 0:02:45.8]} 11. a4 {[%clk 0:02:47.4]} 11...
Nbd7 {[%clk 0:02:44.9]} 12. Ba3 {[%clk 0:02:47]} 12... Rfd8 {[%clk 0:02:38.6]}
13. a5 {[%clk 0:02:46.8]} 13... c5 {[%clk 0:02:34.3]} 14. Ng5 {[%clk 0:02:39.7]}
14... Bf7 {[%clk 0:02:33.3]} 15. Nxf7 {[%clk 0:02:39.3]} 15... Kxf7 {[%clk
0:02:34.2]} 16. a6 {[%clk 0:02:29.4]} 16... b6 {[%clk 0:02:33.8]} 17. Nd5 {[%clk
0:02:29.1]} 17... Nxd5 {[%clk 0:02:31.8]} 18. Bxd5+ {[%clk 0:02:29.4]} 18... Kf8
{[%clk 0:02:32.7]} 19. Bxa8 {[%clk 0:02:28.1]} 19... Rxa8 {[%clk 0:02:33.6]} 20.
e3 {[%clk 0:02:27.9]} 20... Nf6 {[%clk 0:02:33]} 21. Qf3 {[%clk 0:02:28]} 21...
e4 {[%clk 0:02:32.9]} 22. dxe4 {[%clk 0:02:28.1]} 22... Nxe4 {[%clk 0:02:33.8]}
23. Bb2 {[%clk 0:02:25.5]} 23... Re8 {[%clk 0:02:27.5]} 24. Bxg7+ {[%clk
0:02:25.2]} 24... Kxg7 {[%clk 0:02:28.4]} 25. Rbd1 {[%clk 0:02:25.6]} 25... Qf7
{[%clk 0:02:26.1]} 26. Rd5 {[%clk 0:02:16.8]} 26... Ng5 {[%clk 0:02:13.2]} 27.
Qd1 {[%clk 0:02:12.2]} 27... Qe6 {[%clk 0:02:02]} 28. h4 {[%clk 0:02:07.6]}
28... Ne4 {[%clk 0:01:58.3]} 29. Qa1+ {[%clk 0:02:01.8]} 29... Qf6 {[%clk
0:01:54.4]} 30. Qxf6+ {[%clk 0:02:00.7]} 30... Kxf6 {[%clk 0:01:55.3]} 31. Rfd1
{[%clk 0:01:58.5]} 31... Re6 {[%clk 0:01:47.1]} 32. R1d3 {[%clk 0:01:50.4]}
32... Ke7 {[%clk 0:01:45.5]} 33. Rb3 {[%clk 0:01:45.2]} 33... Nf6 {[%clk
0:01:44.4]} 34. Rd1 {[%clk 0:01:43]} 34... Ne4 {[%clk 0:01:45.3]} 35. Kg2 {[%clk
0:01:41.9]} 35... Re5 {[%clk 0:01:40.9]} 36. Rbd3 {[%clk 0:01:41]} 36... Re6
{[%clk 0:01:39.7]} 37. f3 {[%clk 0:01:37.5]} 37... Nf6 {[%clk 0:01:40.1]} 38.
Kf2 {[%clk 0:01:36.7]} 38... Kd7 {[%clk 0:01:39.4]} 39. Rh1 {[%clk 0:01:29.5]}
39... h5 {[%clk 0:01:38]} 40. Re1 {[%clk 0:01:26.2]} 40... Kc7 {[%clk
0:01:36.2]} 41. Ke2 {[%clk 0:01:25.7]} 41... Re7 {[%clk 0:01:33.3]} 42. Kd2
{[%clk 0:01:24.7]} 42... Re6 {[%clk 0:01:33.5]} 43. Kc2 {[%clk 0:01:22.7]} 43...
Re7 {[%clk 0:01:33]} 44. e4 {[%clk 0:01:22.8]} 44... fxe4 {[%clk 0:01:31.5]} 45.
fxe4 {[%clk 0:01:23]} 45... Rxe4 {[%clk 0:01:30.3]} 46. Rxe4 {[%clk 0:01:21.2]}
46... Nxe4 {[%clk 0:01:31.2]} 47. Re3 {[%clk 0:01:19.3]} 47... Nf6 {[%clk
0:01:29]} 48. Re7+ {[%clk 0:01:17.5]} 48... Nd7 {[%clk 0:01:22.5]} 49. Rg7
{[%clk 0:01:17.3]} 1-0

[Event "*** Titled Tuesday Blitz"]
[Site "Chess.com"]
[Date "2021.04.06"]
[Round "7"]
[White "Deepweb2020"]
[Black "FeketeBarika"]
[Result "1-0"]
[WhiteElo "2518"]
[BlackElo "2281"]
[TimeControl "180+1"]
[EndTime "11:16:48 PDT"]
[Termination "Deepweb2020 won on time"]

1. e4 {[%clk 0:03:00.9]} 1... e6 {[%clk 0:02:44.1]} 2. b3 {[%clk 0:02:57.2]}
2... d5 {[%clk 0:02:45]} 3. exd5 {[%clk 0:02:56.5]} 3... exd5 {[%clk 0:02:37.1]}
4. Nf3 {[%clk 0:02:56.6]} 4... Bd6 {[%clk 0:02:20.4]} 5. Bb2 {[%clk 0:02:56.4]}
5... Nf6 {[%clk 0:01:49.7]} 6. Be2 {[%clk 0:02:54.9]} 6... O-O {[%clk
0:01:35.5]} 7. O-O {[%clk 0:02:54.9]} 7... Bg4 {[%clk 0:01:29.7]} 8. d4 {[%clk
0:02:54.5]} 8... Re8 {[%clk 0:01:28.6]} 9. c4 {[%clk 0:02:54.4]} 9... c6 {[%clk
0:01:26.1]} 10. Nc3 {[%clk 0:02:54.4]} 10... Nbd7 {[%clk 0:01:25]} 11. h3 {[%clk
0:02:48.4]} 11... Bh5 {[%clk 0:01:23.9]} 12. Re1 {[%clk 0:02:47.4]} 12... Bc7
{[%clk 0:01:12.8]} 13. Qc2 {[%clk 0:02:35.2]} 13... Ne4 {[%clk 0:00:52.4]} 14.
Rad1 {[%clk 0:02:31.5]} 14... Ndf6 {[%clk 0:00:51.2]} 15. Ne5 {[%clk 0:02:29.6]}
15... Bxe2 {[%clk 0:00:47.1]} 16. Rxe2 {[%clk 0:02:29.5]} 16... Nxc3 {[%clk
0:00:30.6]} 17. Bxc3 {[%clk 0:02:29.1]} 17... dxc4 {[%clk 0:00:29.5]} 18. bxc4
{[%clk 0:02:27.2]} 18... Qd6 {[%clk 0:00:24.9]} 19. Qb3 {[%clk 0:02:20.3]} 19...
b6 {[%clk 0:00:22.1]} 20. Nxf7 {[%clk 0:02:19.3]} 20... Kxf7 {[%clk 0:00:19.3]}
21. c5+ {[%clk 0:02:19.4]} 21... Qd5 {[%clk 0:00:19.2]} 22. Qc2 {[%clk 0:02:19]}
22... Rxe2 {[%clk 0:00:15.9]} 23. Qxe2 {[%clk 0:02:19.9]} 23... Re8 {[%clk
0:00:15.6]} 24. Qd3 {[%clk 0:02:15.3]} 24... bxc5 {[%clk 0:00:14.2]} 25. Qa6
{[%clk 0:02:15.4]} 25... Bb6 {[%clk 0:00:11.6]} 26. Qa4 {[%clk 0:02:12.6]} 26...
cxd4 {[%clk 0:00:10.5]} 27. Bxd4 {[%clk 0:02:07.3]} 27... c5 {[%clk 0:00:09.7]}
28. Bxf6 {[%clk 0:02:04]} 28... Qe4 {[%clk 0:00:04.5]} 29. Ba1 {[%clk
0:01:53.8]} 29... Qxa4 {[%clk 0:00:03.5]} 30. Rd2 {[%clk 0:01:52.2]} 30... Re1+
{[%clk 0:00:01.7]} 31. Kh2 {[%clk 0:01:52.2]} 1-0

[Event "*** Titled Tuesday Blitz"]
[Site "Chess.com"]
[Date "2021.04.06"]
[Round "7"]
[White "krasavetc"]
[Black "evgchess5"]
[Result "0-1"]
[WhiteElo "2394"]
[BlackElo "2899"]
[TimeControl "180+1"]
[EndTime "11:16:49 PDT"]
[Termination "evgchess5 won by resignation"]

1. e4 {[%clk 0:02:59.6]} 1... c5 {[%clk 0:02:59.1]} 2. Nf3 {[%clk 0:02:59.1]}
2... e6 {[%clk 0:02:59.3]} 3. c3 {[%clk 0:02:54]} 3... d5 {[%clk 0:02:58.3]} 4.
e5 {[%clk 0:02:54.3]} 4... Nc6 {[%clk 0:02:57.2]} 5. Bb5 {[%clk 0:02:46.3]} 5...
Bd7 {[%clk 0:02:56.8]} 6. Bxc6 {[%clk 0:02:44.9]} 6... Bxc6 {[%clk 0:02:56]} 7.
d3 {[%clk 0:02:44.1]} 7... h6 {[%clk 0:02:51.8]} 8. O-O {[%clk 0:02:42.8]} 8...
Ne7 {[%clk 0:02:50.9]} 9. Bf4 {[%clk 0:02:36.9]} 9... g5 {[%clk 0:02:48.3]} 10.
Be3 {[%clk 0:02:29.7]} 10... Nf5 {[%clk 0:02:44.3]} 11. d4 {[%clk 0:02:28.5]}
11... b6 {[%clk 0:02:39.4]} 12. Nbd2 {[%clk 0:02:27.3]} 12... Bb5 {[%clk
0:02:15.1]} 13. Re1 {[%clk 0:02:26.4]} 13... g4 {[%clk 0:02:14]} 14. a4 {[%clk
0:02:19.5]} 14... Bc6 {[%clk 0:02:11.8]} 15. Bf4 {[%clk 0:02:03.2]} 15... gxf3
{[%clk 0:02:09.9]} 16. Qxf3 {[%clk 0:01:57]} 16... Rg8 {[%clk 0:02:05.1]} 17. g3
{[%clk 0:01:55.7]} 17... Be7 {[%clk 0:01:54.2]} 18. Be3 {[%clk 0:01:47.5]} 18...
Bg5 {[%clk 0:01:52.3]} 19. a5 {[%clk 0:01:42.8]} 19... Bxe3 {[%clk 0:01:43.9]}
20. fxe3 {[%clk 0:01:42.4]} 20... b5 {[%clk 0:01:35]} 21. Kh1 {[%clk 0:01:42.3]}
21... Qg5 {[%clk 0:01:32.5]} 22. b3 {[%clk 0:01:33.5]} 22... h5 {[%clk 0:01:20]}
23. Re2 {[%clk 0:01:25.3]} 23... h4 {[%clk 0:01:16.5]} 24. gxh4 {[%clk
0:01:16.7]} 24... Qxh4 {[%clk 0:01:16.3]} 25. Rg2 {[%clk 0:01:08.1]} 25... O-O-O
{[%clk 0:01:15.1]} 26. Rag1 {[%clk 0:01:06.4]} 26... Rxg2 {[%clk 0:01:13.7]} 27.
Rxg2 {[%clk 0:00:55.4]} 27... Qe1+ {[%clk 0:01:10.4]} 28. Nf1 {[%clk 0:00:55.1]}
28... Qxc3 {[%clk 0:00:57.2]} 29. Rc2 {[%clk 0:00:54.7]} 29... Qxc2 {[%clk
0:00:56.3]} 0-1

[Event "*** Titled Tuesday Blitz"]
[Site "Chess.com"]
[Date "2021.04.06"]
[Round "7"]
[White "fastestmindalive"]
[Black "ShahMatKanal"]
[Result "1-0"]
[WhiteElo "2767"]
[BlackElo "2452"]
[TimeControl "180+1"]
[EndTime "11:16:57 PDT"]
[Termination "fastestmindalive won by resignation"]

1. e4 {[%clk 0:03:00.9]} 1... c5 {[%clk 0:02:59.7]} 2. Nc3 {[%clk 0:03:00.7]}
2... Nc6 {[%clk 0:02:59]} 3. f4 {[%clk 0:03:01.1]} 3... g6 {[%clk 0:02:48.1]} 4.
Nf3 {[%clk 0:03:02]} 4... Bg7 {[%clk 0:02:47.6]} 5. Bb5 {[%clk 0:03:02.4]} 5...
Nd4 {[%clk 0:02:41]} 6. a4 {[%clk 0:03:02.6]} 6... Nf6 {[%clk 0:02:24.1]} 7. e5
{[%clk 0:03:00]} 7... Nh5 {[%clk 0:01:39.3]} 8. d3 {[%clk 0:02:59.8]} 8... a6
{[%clk 0:01:35.3]} 9. Bc4 {[%clk 0:02:58.9]} 9... d6 {[%clk 0:01:29.5]} 10. O-O
{[%clk 0:02:49.9]} 10... O-O {[%clk 0:01:22.9]} 11. exd6 {[%clk 0:02:32.7]}
11... Qxd6 {[%clk 0:01:22.3]} 12. Ne4 {[%clk 0:02:28.7]} 12... Qc7 {[%clk
0:01:13.9]} 13. c3 {[%clk 0:02:28.7]} 13... Ne6 {[%clk 0:01:08.1]} 14. g3 {[%clk
0:02:24.4]} 14... Bd7 {[%clk 0:01:07.8]} 15. Ne5 {[%clk 0:02:20.4]} 15... b5
{[%clk 0:00:55.2]} 16. axb5 {[%clk 0:02:00.3]} 16... axb5 {[%clk 0:00:54.9]} 17.
Rxa8 {[%clk 0:02:01.2]} 17... Rxa8 {[%clk 0:00:55]} 18. Bd5 {[%clk 0:02:01.8]}
18... Rc8 {[%clk 0:00:43.5]} 19. Nxf7 {[%clk 0:02:01.5]} 19... c4 {[%clk
0:00:20.6]} 20. f5 {[%clk 0:01:56.7]} 20... gxf5 {[%clk 0:00:18.1]} 21. Qxh5
{[%clk 0:01:55.1]} 21... fxe4 {[%clk 0:00:15.9]} 22. Ng5 {[%clk 0:01:54.7]}
22... Qb6+ {[%clk 0:00:10.4]} 23. d4 {[%clk 0:01:54.2]} 23... h6 {[%clk
0:00:09.7]} 24. Qf7+ {[%clk 0:01:48.6]} 24... Kh8 {[%clk 0:00:10]} 25. Nxe6
{[%clk 0:01:48.1]} 25... Bxe6 {[%clk 0:00:10.3]} 26. Bxe6 {[%clk 0:01:47.2]}
26... Rf8 {[%clk 0:00:09.2]} 27. Qxe7 {[%clk 0:01:33.8]} 27... Bxd4+ {[%clk
0:00:08.7]} 28. Kg2 {[%clk 0:01:31.9]} 28... Rxf1 {[%clk 0:00:07]} 29. Kxf1
{[%clk 0:01:32.8]} 1-0